{"text_format":"3","workbook":"xlsx","n_sheets":4,"sheets":["Sheet1","Sheet1 (2)","Sheet2","Sheet3"],"read":"whole","date_system":"1900"}

{"sheet":"Sheet1","index":0,"n_rows":23,"n_cols":15,"rows_kept":23,"merged":[[0,0,0,14],[1,4,1,5],[1,7,1,8],[2,4,2,5],[2,7,2,8],[5,0,12,0],[15,0,15,9],[20,7,20,8],[21,7,21,8],[22,7,22,8]]}
["Placements Status of GPW Faridabad for Batch 2019-22  "]
["Name of Principal:","Smt. Meenu Verma",null,"Contact Nos:   ",9910153115,null,"E-Mail ID: ","gpwfaridabad@hry.nic.in"]
["Name of TPO: ","Padam Singh  ",null,"Contact Nos:   ",9250963647,null,"E-Mail ID: ","tpogpwfaridabad@gmail.com"]
[]
["Name of Institute ","Branch  / Discipline                                        \n","No.  of Students Enrolled (2019 passing out batch)         \n(A)","No. of Students \neligible\n(all clear)            \n(B)\n","Eligible %age                                                                                                                          (C)","No. of students placed out of eligible students          (D)  ","%age of Placement                    (E)","No. of students shortlisted  (confirmation awaited)                (F)","No. of students  of 2022 batch placed though having reappears          (G)","Tentative no. of Students opting for higher education               (H)","No. of students placed in 2021 out of previous batches                          (I)","over all placement     %                  P=  D+H","Minimum Package","maximum package","Company Name"]
["Govt. Polytechnic for, Women Faridabad","Electronics Engg.",51,36,{"$f":"(D6/C6*100)","v":{"v":70.58823529411765,"d":"70.6"}},32,{"$f":"(F6/D6*100)","v":{"v":88.88888888888889,"d":"88.9"}},0,13,4,6,100,"1.20 Lacs","2.16 Lacs","Yokohama ,VVDN,Fimo India mfg.,Accurate Automation,Omega Bright Steel, Delton India Pvt. Ltd. Fbd, Span Autotech Pvt. Ltd."]
[null,"DBM",59,33,{"$f":"(D7/C7*100)","v":{"v":55.932203389830505,"d":"55.9"}},25,{"$f":"(F7/D7*100)","v":{"v":75.75757575757575,"d":"75.8"}},0,4,8,1,{"$f":"(F7+J7)/D7*100","v":100},"1.02 Lacs","2.16 Lacs"," Escorts, Shree Maruti, Paluck technologies, Algol Universal Trust, Finsys ERP Solution Providers, JBMR Inspire Studio , Nandini Enterpreneur Equipments, "]
[null,"Mech. Engg. ",38,8,{"v":21.052631578947366,"d":"21.1"},8,{"v":100,"d":"100.0"},0,5,0,11,100,"1.44 Lacs","2.04 Lacs","Yokohama India Pvt. Ltd., PICL INDIA PVT. LTD."]
[null,"FD",52,45,{"v":86.53846153846155,"d":"86.5"},30,{"v":66.66666666666666,"d":"66.7"},0,0,15,5,100,"1.44 Lacs","3.0 Lacs","BKNP DESIGN , shahi expoot, richaco pvt., shivalik Prints, Pee empro exp., Emar design, Dhruv Global"]
[null,"Civil Engg.",45,28,{"v":62.22222222222222,"d":"62.2"},9,{"v":32.142857142857146,"d":"32.1"},0,0,19,4,100,"1.20 lacs","3.0 Lacs","JBK interiors solutions,Dhl supply chainDhl supply chain, Empress clinic, Spark 3d, PS Bedi securecom"]
[null,"Computer Engg.",120,61,{"v":50.83333333333333,"d":"50.8"},31,{"v":50.81967213114754,"d":"50.8"},0,0,30,20,{"v":100,"d":"100.0"},"0.96 Lacs","2.16 Lacs","VVDN,Binario Technologies, One-tick Technologies,BS Infosystems & Solutions, Jindal Rectifiers, Systemic Electric, Sai Auto Components , RX Infotech Pvt. Ltd."]
[null,"Arch.",52,35,{"v":67.3076923076923,"d":"67.3"},17,{"v":48.57142857142857,"d":"48.6"},0,0,18,10,{"v":100,"d":"100.0"},"0.84 Lacs","2.04 lacs","Munesh Associates, Inspire cad academy, Design expression, Vipul plaza , Safari ( luggage brand ), Contemporary ,Interiors, S.C. Interiors,"]
[null,"TOTAL",{"$f":"SUM(C6:C12)","v":417},246,null,152,null,0,22,{"$f":"SUM(J6:J12)","v":94},57,{"$f":"AVERAGE(L6:L12)","v":{"v":100,"d":"100.0"}}]
[]
[]
["Note:-   1 Student of CR Polytechnic, Rohtak + 1 Student GP Lisana also placed by this institute"]
[]
[]
[]
[]
[{"$nulls":7},"TPO"]
[{"$nulls":7},"Govt. Polytechnic For Women "]
[{"$nulls":7},"Faridabad"]

{"sheet":"Sheet1 (2)","index":1,"n_rows":9,"n_cols":12,"rows_kept":9,"merged":[[0,0,0,11],[2,0,8,0]]}
["Placements Status of GPW Faridabad for Batch 2019-22  "]
["Name of Institute ","Branch  / Discipline                                        \n","No.  of Students Enrolled (2019 passing out batch)         \n(A)","No. of Students \neligible\n(all clear)            \n(B)\n","Eligible %age                                                                                                                          (C)","No. of students placed out of eligible students          (D)  ","Tentative no. of Students opting for higher education               (H)","No. of students placed in 2021 out of previous batches                          (I)","over all placement     %                  P=  D+H","Minimum Package","maximum package","Company Name"]
["Govt. Polytechnic for, Women Faridabad","Electronics Engg.",51,36,{"$f":"(D3/C3*100)","v":{"v":70.58823529411765,"d":"70.6"}},32,4,6,100,"1.20 Lacs","2.16 Lacs","Yokohama ,VVDN,Fimo India mfg.,Accurate Automation,Omega Bright Steel, Delton India Pvt. Ltd. Fbd, Span Autotech Pvt. Ltd."]
[null,"DBM",59,33,{"$f":"(D4/C4*100)","v":{"v":55.932203389830505,"d":"55.9"}},25,8,1,{"$f":"(F4+G4)/D4*100","v":100},"1.02 Lacs","2.16 Lacs"," Escorts, Shree Maruti, Paluck technologies, Algol Universal Trust, Finsys ERP Solution Providers, JBMR Inspire Studio , Nandini Enterpreneur Equipments, "]
[null,"Mech. Engg. ",38,8,{"v":21.052631578947366,"d":"21.1"},8,0,11,100,"1.44 Lacs","2.04 Lacs","Yokohama India Pvt. Ltd., PICL INDIA PVT. LTD.,  Q.A Engg"]
[null,"FD",52,45,{"v":86.53846153846155,"d":"86.5"},30,15,5,100,"1.44 Lacs","3.0 Lacs","BKNP DESIGN , shahi expoot, richaco pvt., shivalik Prints, Pee empro exp., Emar design, Dhruv Global"]
[null,"Civil Engg.",45,28,{"v":62.22222222222222,"d":"62.2"},9,19,4,100,"1.20 lacs","3.0 Lacs","JBK interiors solutions,Dhl supply chainDhl supply chain, Empress clinic, Spark 3d, PS Bedi securecom"]
[null,"Computer Engg.",120,61,{"v":50.83333333333333,"d":"50.8"},31,30,20,{"v":100,"d":"100.0"},"0.96 Lacs","2.16 Lacs","VVDN,Binario Technologies, One-tick Technologies,BS Infosystems & Solutions, Jindal Rectifiers, Systemic Electric, Sai Auto Components , RX Infotech Pvt. Ltd."]
[null,"Arch.",52,35,{"v":67.3076923076923,"d":"67.3"},17,18,10,{"v":100,"d":"100.0"},"0.84 Lacs","2.04 lacs","Munesh Associates, Inspire cad academy, Design expression, Vipul plaza , Safari ( luggage brand ), Contemporary ,Interiors, S.C. Interiors,"]

{"sheet":"Sheet2","index":2,"n_rows":0,"n_cols":0,"rows_kept":0}

{"sheet":"Sheet3","index":3,"n_rows":0,"n_cols":0,"rows_kept":0}